bitfinex-derivatives/quotes_BTCF0:USTF0_20241023
["timestamp","ask_amount","ask_price","bid_price","bid_amount"]
[1729672155375,0.54473766,66878.0,66877.0,0.0002]
[1729672158973,0.66781766,66878.0,66877.0,0.0002]
[1729672160080,0.30701766,66878.0,66877.0,0.0002]
[1729672160383,0.66781766,66878.0,66877.0,0.0002]
[1729672160974,0.30701766,66878.0,66877.0,0.0002]
[1729672161285,0.66781766,66878.0,66877.0,0.0002]
[1729672162678,0.43473766,66878.0,66877.0,0.0002]
[1729672162883,0.55781766,66878.0,66877.0,0.0002]
[1729672163076,0.55781766,66878.0,66877.0,0.04507353]
[1729672164184,0.43473766,66878.0,66877.0,0.04507353]
[1729672164387,0.43473766,66878.0,66877.0,0.0002]
[1729672164388,0.55745766,66878.0,66877.0,0.0002]
[1729672164776,0.66745766,66878.0,66877.0,0.0002]
[1729672166285,0.54473766,66878.0,66877.0,0.0002]
[1729672168486,0.43473766,66878.0,66877.0,0.0002]
[1729672170189,0.07393766,66878.0,66877.0,0.0002]
[1729672175785,0.18393766,66878.0,66877.0,0.0002]
[1729672181895,0.07393766,66878.0,66877.0,0.0002]
[1729672186296,0.07393766,66878.0,66877.0,0.04507353]
[1729672188408,0.07393766,66878.0,66877.0,0.0002]
[1729672190999,0.07393766,66878.0,66877.0,0.04510098]
[1729672191407,0.07393766,66878.0,66877.0,0.0002]
[1729672192117,0.18393766,66878.0,66877.0,0.0002]
[1729672194105,0.18393766,66878.0,66877.0,0.04511966]
[1729672195819,0.18393766,66878.0,66877.0,0.0002]
[1729672196912,1.68393766,66878.0,66877.0,0.0002]
[1729672199224,1.79393766,66878.0,66877.0,0.0002]
[1729672199407,1.68393766,66878.0,66877.0,0.0002]
[1729672200508,2.07191509,66878.0,66859.0,0.00234262]
[1729672200715,0.11,66864.0,66861.0,0.059863]
[1729672200916,0.204742,66863.0,66861.0,0.059863]
[1729672201111,0.204742,66862.0,66861.0,0.059863]
[1729672202012,0.264605,66862.0,66861.0,0.059863]
[1729672202411,0.059866,66859.0,66858.0,0.36380312]
[1729672202613,0.484608,66859.0,66858.0,0.00224312]
[1729672202809,0.059868,66856.0,66854.0,0.0002]
[1729672203015,0.37461,66856.0,66854.0,0.0002]
[1729672204823,0.31117438,66856.0,66854.0,0.0002]
[1729672205025,0.43349438,66856.0,66854.0,0.0002]
[1729672205220,0.437062,66856.0,66848.0,0.0002]
[1729672205424,0.530675,66849.0,66848.0,0.0002]
[1729672205726,0.735417,66849.0,66848.0,0.0002]
[1729672206430,0.845417,66849.0,66848.0,0.0002]
[1729672206617,0.640675,66849.0,66848.0,0.0002]
[1729672208617,0.640675,66849.0,66845.0,0.0002]
[1729672208618,0.059877,66846.0,66845.0,0.0002]
[1729672208932,0.059878,66845.0,66840.0,0.0002]
[1729672209228,0.059882,66841.0,66840.0,0.0002]
[1729672209432,0.530682,66841.0,66840.0,0.0002]
[1729672209629,0.640682,66841.0,66840.0,0.0002]
[1729672209927,0.059885,66838.0,66837.0,0.0004]
[1729672210116,0.279885,66838.0,66837.0,0.0004]
[1729672210826,0.169885,66838.0,66837.0,0.0004]
[1729672211232,0.640685,66838.0,66833.0,0.0002]
[1729672211526,0.420685,66838.0,66833.0,0.0002]
[1729672211821,0.22,66837.0,66833.0,0.0002]
[1729672212030,0.11,66837.0,66833.0,0.0002]
[1729672212323,0.22,66837.0,66833.0,0.0002]
[1729672213627,0.11,66837.0,66833.0,0.0002]
[1729672213830,0.23236,66837.0,66833.0,0.0002]
[1729672214526,0.01397079,66837.0,66833.0,0.0002]
[1729672214827,0.11,66837.0,66833.0,0.0002]
[1729672215734,0.279886,66837.0,66833.0,0.0002]
[1729672215917,0.169886,66837.0,66833.0,0.0002]
[1729672216120,0.279886,66837.0,66833.0,0.0002]
[1729672216433,0.059887,66835.0,66833.0,0.0002]
[1729672216818,0.508767,66835.0,66833.0,0.0002]
[1729672217124,0.059889,66833.0,66827.0,0.0002]
[1729672217425,0.059894,66828.0,66827.0,0.0002]
[1729672217731,0.292254,66828.0,66827.0,0.0002]
[1729672221541,0.35824627,66828.0,66816.0,0.00896109]
[1729672221738,0.11,66819.0,66816.0,0.00896109]
[1729672222032,0.059903,66817.0,66816.0,0.0002]
[1729672222237,0.26036669,66817.0,66816.0,0.0002]
[1729672222625,0.13800669,66817.0,66816.0,0.0002]
[1729672222827,0.12422344,66817.0,66816.0,0.170104]
[1729672223022,0.07810369,66817.0,66816.0,0.226504]
[1729672223226,0.07810369,66817.0,66816.0,0.12200886]
[1729672224629,0.07810369,66817.0,66816.0,0.116304]
[1729672225532,0.24800669,66817.0,66816.0,0.0564]
[1729672225924,0.29398141,66817.0,66816.0,0.0564]
[1729672226123,0.29398141,66817.0,66816.0,0.1664]
[1729672226124,0.1839798,66817.0,66816.0,0.1664]
[1729672226442,0.04196209,66817.0,66816.0,0.785304]
[1729672226630,0.02175404,66817.0,66816.0,0.565304]
[1729672226826,0.02175404,66817.0,66816.0,1.385304]
[1729672227033,0.3608,66821.0,66816.0,1.385304]
[1729672227239,0.13414886,66825.0,66820.0,0.11]
[1729672227540,0.04597058,66824.0,66823.0,0.059898]
[1729672227930,0.04597058,66824.0,66823.0,0.618858]
[1729672228236,0.13350396,66824.0,66823.0,0.618858]
[1729672228444,0.059892,66830.0,66828.0,0.059894]
[1729672228633,0.3624,66833.0,66829.0,0.22]
[1729672228834,0.3608,66833.0,66832.0,0.16989]
[1729672229244,0.3608,66833.0,66832.0,0.61877]
[1729672229541,0.420689,66833.0,66832.0,0.61897]
[1729672229744,0.420689,66833.0,66832.0,0.0002]
[1729672232441,0.420689,66833.0,66832.0,0.44908]
[1729672232442,0.3608,66833.0,66832.0,0.44908]
[1729672232636,0.3608,66833.0,66832.0,0.50897]
[1729672233242,0.3608,66833.0,66832.0,0.06009]
[1729672233445,0.3608,66833.0,66832.0,0.50897]
[1729672233947,0.530689,66833.0,66832.0,0.0002]
[1729672235440,0.169889,66833.0,66832.0,0.0002]
[1729672236152,0.059889,66833.0,66832.0,0.0002]
[1729672236645,0.17530278,66833.0,66832.0,0.4708]
[1729672236946,0.17530278,66833.0,66832.0,0.53069]
[1729672237645,0.12100004,66833.0,66832.0,0.53069]
[1729672237944,0.0004,66836.0,66835.0,0.059887]
[1729672238149,0.0004,66836.0,66835.0,0.769887]
[1729672238448,0.0004,66836.0,66835.0,0.170087]
[1729672240243,0.0004,66836.0,66835.0,0.230087]
[1729672240950,0.05409981,66836.0,66835.0,0.230087]
[1729672241654,0.24773412,66836.0,66835.0,0.230087]
[1729672241951,0.24773412,66836.0,66835.0,0.830087]
[1729672242153,0.05409981,66836.0,66835.0,0.830087]
[1729672242639,0.05409981,66836.0,66835.0,0.660087]
[1729672242842,0.10005437,66836.0,66835.0,0.660087]
[1729672243442,0.10005437,66836.0,66835.0,0.67421583]
[1729672243740,0.0004,66836.0,66835.0,0.67421583]
[1729672244748,0.0004,66836.0,66835.0,0.71894879]
[1729672244946,0.0004,66836.0,66835.0,0.71894876]
[1729672245148,0.0004,66836.0,66835.0,0.67421583]
[1729672245344,0.0004,66836.0,66835.0,0.71893846]
[1729672245650,0.0004,66836.0,66835.0,0.07421583]
[1729672247149,0.0004,66836.0,66835.0,0.24421583]
[1729672247339,0.0004,66836.0,66835.0,0.2889277]
[1729672248051,0.0004,66836.0,66835.0,0.1189277]
[1729672248256,0.0004,66836.0,66835.0,0.07421583]
[1729672248554,0.0004,66836.0,66835.0,0.1189277]
[1729672248855,0.0004,66836.0,66835.0,0.07421583]
[1729672249440,0.0004,66836.0,66835.0,0.1189277]
[1729672249752,0.0004,66836.0,66835.0,0.43501583]
[1729672249950,0.0004,66836.0,66835.0,0.4797277]
[1729672250843,0.02931913,66836.0,66835.0,0.43501583]
[1729672251841,0.02891907,66836.0,66835.0,0.43501583]
[1729672252048,0.0004,66848.0,66847.0,0.059877]
[1729672252254,0.0004,66848.0,66847.0,0.420677]
[1729672252553,0.0004,66848.0,66847.0,0.420877]
[1729672253955,0.0004,66848.0,66847.0,0.4349063]
[1729672258346,0.03705464,66848.0,66847.0,0.4349063]
[1729672258653,0.0004,66848.0,66847.0,0.4349063]
[1729672259256,0.0004,66848.0,66847.0,0.0741063]
[1729672259556,0.0004,66848.0,66847.0,0.4349063]
[1729672260753,0.0004,66848.0,66842.0,0.17]
[1729672260754,0.29993652,66848.0,66842.0,0.17]
[1729672260956,0.29953652,66845.0,66844.0,0.059879]
[1729672261845,0.46953652,66845.0,66835.0,0.0002]
[1729672262149,0.46953652,66845.0,66835.0,0.060087]
[1729672262150,0.29953652,66836.0,66835.0,0.060087]
[1729672264063,0.35363652,66836.0,66835.0,0.060087]
[1729672265965,0.0541,66836.0,66835.0,0.060087]
[1729672266850,0.3608,66840.0,66835.0,0.060087]
[1729672266851,0.3608,66840.0,66839.0,0.059884]
[1729672267058,0.66033652,66840.0,66839.0,0.229884]
[1729672267259,0.66033652,66840.0,66839.0,0.230084]
[1729672267460,0.66033652,66840.0,66839.0,0.060084]
[1729672267662,0.72021952,66840.0,66839.0,0.060084]
[1729672267862,0.059885,66838.0,66837.0,0.05973833]
[1729672268160,0.35942252,66836.0,66835.0,0.060087]
[1729672268663,0.35942252,66836.0,66835.0,0.0002]
[1729672268861,0.059887,66835.0,66832.0,0.29686421]
[1729672269063,0.66033652,66834.0,66833.0,0.059889]
[1729672269270,0.72022452,66834.0,66833.0,0.059889]
[1729672269953,0.72022452,66834.0,66829.0,0.0002]
[1729672270159,0.29953652,66830.0,66829.0,0.060093]
[1729672271754,0.24709064,66830.0,66829.0,0.13479823]
[1729672271961,0.24709064,66830.0,66829.0,0.060093]
[1729672272157,0.24709064,66830.0,66829.0,0.13479823]
[1729672272358,0.24709064,66830.0,66829.0,0.060093]
[1729672272970,0.3608,66834.0,66833.0,0.059889]
[1729672273264,0.60789064,66834.0,66833.0,0.230089]
[1729672275564,0.24709064,66834.0,66833.0,0.230089]
[1729672277063,0.60789064,66834.0,66833.0,0.230089]
[1729672278358,0.3608,66840.0,66839.0,0.059884]
[1729672278562,0.3608,66840.0,66839.0,0.229884]
[1729672278758,0.3608,66840.0,66839.0,0.230084]
[1729672278967,0.3612,66848.0,66839.0,0.531]
[1729672279166,0.3612,66848.0,66847.0,0.229877]
[1729672279469,0.0004,66848.0,66847.0,0.760877]
[1729672279661,0.0004,66848.0,66847.0,0.590877]
[1729672280055,0.0004,66848.0,66847.0,0.760877]
[1729672280253,0.0004,66851.0,66847.0,0.760877]
[1729672280456,0.0004,66851.0,66849.0,0.059875]
[1729672280667,0.0004,66851.0,66849.0,0.060075]
[1729672280872,0.0004,66851.0,66849.0,0.13470762]
[1729672281570,0.0004,66851.0,66849.0,0.060075]
[1729672283572,0.24749064,66850.0,66849.0,0.10480842]
[1729672283864,0.24749064,66850.0,66849.0,0.060075]
[1729672284071,0.30059064,66850.0,66849.0,0.060075]
[1729672284370,0.36046464,66850.0,66849.0,0.060075]
[1729672284961,0.30059064,66850.0,66849.0,0.060075]
[1729672285358,0.24749064,66850.0,66849.0,0.060075]
[1729672288773,0.35954064,66850.0,66849.0,0.03694718]
[1729672290782,0.06650438,66850.0,66849.0,0.20694718]
[1729672291074,0.0159432,66850.0,66849.0,0.230075]
[1729672291274,0.0159432,66850.0,66849.0,0.400075]
[1729672291872,0.13407637,66850.0,66849.0,0.400075]
[1729672292281,0.13407637,66851.0,66850.0,0.059874]
[1729672292574,0.13407637,66851.0,66850.0,0.400074]
[1729672292780,0.13407637,66851.0,66850.0,0.230074]
[1729672295174,0.13407637,66852.0,66851.0,0.059873]
[1729672295382,0.13407637,66852.0,66851.0,0.590673]
[1729672295582,0.13407637,66852.0,66851.0,0.590873]
[1729672295771,0.13407637,66852.0,66851.0,0.69699969]
[1729672296582,0.13407637,66852.0,66851.0,0.92389969]
[1729672297378,0.0004,66856.0,66851.0,0.92389969]
[1729672297569,0.0004,66856.0,66855.0,0.5308]
[1729672297883,0.0008,66863.0,66862.0,0.059863]
[1729672298186,0.0008,66863.0,66862.0,0.590863]
[1729672298487,0.0008,66863.0,66862.0,0.69842819]
[1729672298488,1e-06,66863.0,66862.0,0.69842819]
[1729672301373,0.0004,66872.0,66862.0,1.85724519]
[1729672301686,0.0004,66879.0,66878.0,0.059849]
[1729672301896,0.0004,66883.0,66882.0,0.059845]
[1729672302180,0.0004,66883.0,66882.0,0.229845]
[1729672302692,0.0004,66883.0,66882.0,0.41036909]
[1729672302982,0.0004,66883.0,66882.0,0.41056909]
[1729672303181,0.24749064,66883.0,66882.0,0.230045]
[1729672303380,0.30733464,66883.0,66882.0,0.0002]
[1729672303680,0.47733464,66883.0,66882.0,0.0002]
[1729672303884,0.83813464,66883.0,66882.0,0.0002]
[1729672304186,0.77829064,66883.0,66878.0,0.0002]
[1729672304484,0.059851,66876.0,66872.0,0.059854]
[1729672304686,0.41709064,66879.0,66872.0,0.059854]
[1729672304687,0.420651,66875.0,66872.0,0.059854]
[1729672304984,0.24709064,66873.0,66872.0,0.059854]
[1729672310586,0.24709064,66873.0,66868.0,0.059857]
[1729672310587,0.059856,66870.0,66868.0,0.059857]
[1729672310786,0.24709064,66868.0,66867.0,0.06588474]
[1729672310988,0.41225076,66868.0,66867.0,0.04409799]
[1729672311194,0.52425076,66868.0,66867.0,0.04409799]
[1729672311777,0.52425076,66868.0,66861.0,0.35064283]
[1729672311985,0.24709064,66862.0,66861.0,0.34988283]
[1729672312182,0.24709064,66862.0,66861.0,0.51988283]
[1729672312183,0.41225076,66862.0,66861.0,0.51988283]
[1729672313591,0.41225076,66862.0,66861.0,0.57974683]
[1729672315186,0.41225323,66862.0,66861.0,0.57974683]
[1729672318895,0.41225323,66862.0,66861.0,0.82351614]
[1729672318896,0.16472382,66862.0,66861.0,0.82351614]
[1729672319082,0.16472382,66862.0,66861.0,0.67695391]
[1729672319796,0.16472382,66862.0,66861.0,0.67706128]
[1729672320185,0.16472382,66862.0,66861.0,0.80894552]
[1729672320488,0.11230969,66862.0,66861.0,0.80878532]
[1729672320694,0.112,66868.0,66867.0,0.059859]
[1729672320883,0.112,66868.0,66867.0,0.34117694]
[1729672320884,0.0549,66868.0,66867.0,0.34117694]
[1729672321083,0.16720969,66868.0,66867.0,0.34137694]
[1729672321585,0.16720969,66868.0,66867.0,0.47242206]
[1729672321787,0.16720969,66868.0,66867.0,0.34137694]
[1729672322101,0.16720969,66868.0,66867.0,0.47246165]
[1729672324101,0.11230969,66868.0,66867.0,0.47246165]
[1729672325900,0.1412151,66868.0,66867.0,0.230059]
[1729672326592,0.1412151,66868.0,66867.0,0.060059]
[1729672327198,0.1412151,66868.0,66867.0,0.0002]
[1729672327199,0.34786219,66868.0,66867.0,0.0002]
[1729672327404,0.39379779,66868.0,66861.0,0.33587934]
[1729672327706,0.11230969,66862.0,66861.0,0.39574334]
[1729672327911,0.17786731,66862.0,66861.0,0.56574334]
[1729672331610,0.02890882,66862.0,66861.0,0.56574334]
[1729672331799,0.02890702,66862.0,66861.0,0.56574334]
[1729672332702,0.13421042,66875.0,66861.0,1.19872817]
[1729672332897,0.13421042,66875.0,66873.0,0.059853]
[1729672333100,0.50992268,66877.0,66874.0,0.0002]
[1729672333402,0.08257536,66876.0,66874.0,0.0002]
[1729672333612,0.19488505,66875.0,66874.0,0.0002]
[1729672333806,0.11230969,66875.0,66874.0,0.28064595]
[1729672334311,0.11230969,66875.0,66874.0,0.0002]
[1729672334514,0.17216069,66875.0,66874.0,0.0002]
[1729672336301,0.34216069,66875.0,66874.0,0.06000623]
[1729672336496,0.34216069,66875.0,66874.0,0.0002]
[1729672336702,0.17216069,66875.0,66874.0,0.0002]
[1729672340803,0.23989626,66875.0,66874.0,0.0002]
[1729672341002,0.32248309,66875.0,66874.0,0.0002]
[1729672341614,0.32248309,66875.0,66874.0,0.00014394]
[1729672342414,0.32248309,66875.0,66874.0,0.00010352]
[1729672342716,0.35139231,66875.0,66874.0,0.00010352]
[1729672345308,0.35139231,66875.0,66856.0,0.1702]
[1729672345615,0.059863,66862.0,66860.0,0.059864]
[1729672345807,0.11149612,66861.0,66860.0,0.059864]
[1729672346221,0.6665971,66861.0,66860.0,0.059864]
[1729672346511,0.72027468,66861.0,66860.0,0.059864]
[1729672346713,0.5259737,66861.0,66860.0,0.229864]
[1729672346913,0.66655674,66861.0,66860.0,0.229864]
[1729672347113,0.35943432,66861.0,66860.0,0.229864]
[1729672347418,0.11149612,66861.0,66860.0,0.229864]
[1729672347718,0.1113926,66861.0,66860.0,0.678544]
[1729672349017,0.19426062,66871.0,66870.0,0.059856]
[1729672349211,0.19426062,66871.0,66870.0,0.42982831]
[1729672349515,0.19426062,66871.0,66870.0,0.34015624]
[1729672350015,0.19426062,66871.0,66870.0,0.34031089]
[1729672350618,0.3608,66874.0,66870.0,0.34031089]
[1729672350822,0.3608,66874.0,66871.0,0.11025489]
[1729672351115,0.3608,66874.0,66873.0,0.07492853]
[1729672351318,0.3608,66874.0,66873.0,0.18518342]
[1729672352506,0.3608,66874.0,66873.0,0.11045489]
[1729672353019,0.420652,66874.0,66873.0,0.11045489]
[1729672353516,0.420652,66874.0,66873.0,0.0002]
[1729672356220,0.44955998,66874.0,66873.0,0.0002]
[1729672358219,0.420652,66874.0,66873.0,0.0002]
[1729672358914,0.44956147,66874.0,66873.0,0.0002]
[1729672359514,0.420652,66874.0,66873.0,0.0002]
[1729672359721,0.44956145,66874.0,66873.0,0.0002]
[1729672362114,0.81036145,66874.0,66873.0,0.0002]
[1729672364027,0.059859,66867.0,66866.0,0.04299107]
[1729672364324,0.53215565,66867.0,66866.0,0.04299107]
[1729672364514,0.5858335,66867.0,66866.0,0.04299107]
[1729672365325,0.5858335,66867.0,66866.0,0.21299107]
[1729672365927,0.5259745,66867.0,66866.0,0.21299107]
[1729672366514,0.66635655,66867.0,66866.0,0.21299107]
[1729672366731,0.3592344,66867.0,66866.0,0.21299107]
[1729672366921,0.30555655,66867.0,66866.0,0.21299107]
[1729672367121,0.11149665,66867.0,66866.0,0.21299107]
[1729672369531,0.11149665,66867.0,66866.0,0.22744096]
[1729672370923,0.059854,66873.0,66866.0,0.29411602]
[1729672371122,0.059854,66873.0,66872.0,0.2447637]
[1729672371425,0.059854,66873.0,66872.0,0.35462983]
[1729672371928,0.420654,66873.0,66872.0,0.35462983]
[1729672373129,0.420654,66873.0,66872.0,0.18462983]
[1729672373332,0.420654,66873.0,66872.0,0.0002]
[1729672379116,0.52596636,66873.0,66869.0,0.17]
[1729672379429,0.059856,66870.0,66869.0,0.229856]
[1729672379631,0.36549539,66870.0,66869.0,0.229856]
[1729672380021,0.22502236,66870.0,66869.0,0.229856]
[1729672380216,0.17134715,66870.0,66869.0,0.229856]
[1729672380420,0.11149115,66870.0,66869.0,0.229856]
[1729672381531,0.11352972,66871.0,66870.0,0.059856]
[1729672381732,0.17134517,66871.0,66870.0,0.059856]
[1729672381927,0.17134517,66871.0,66870.0,0.060056]
[1729672382231,0.34134517,66871.0,66870.0,0.0002]
[1729672382432,0.70439017,66871.0,66856.0,0.1702]
[1729672382738,0.3608,66860.0,66856.0,0.230068]
[1729672383036,0.52596489,66860.0,66856.0,0.0002]
[1729672383222,0.059868,66857.0,66856.0,0.0002]
[1729672383537,0.12542313,66857.0,66856.0,0.0002]
[1729672383727,0.17135817,66857.0,66856.0,0.0002]
[1729672384129,0.11149017,66857.0,66856.0,0.060068]
[1729672385336,0.17135817,66857.0,66856.0,0.0002]
[1729672386041,0.07421248,66857.0,66856.0,0.0002]
[1729672388336,0.07421248,66857.0,66856.0,0.04500923]
[1729672389333,0.07421248,66857.0,66856.0,0.0002]
[1729672389926,0.43501248,66857.0,66856.0,0.0002]
[1729672390325,0.07421248,66857.0,66856.0,0.0002]
[1729672390533,0.43501248,66857.0,66856.0,0.0002]
[1729672392746,0.05987,66854.0,66851.0,0.04520923]
[1729672393052,0.420672,66852.0,66851.0,0.0004]
[1729672393237,0.059874,66850.0,66844.0,0.0006]
[1729672393437,0.229874,66850.0,66844.0,0.0006]
[1729672393646,0.678634,66850.0,66844.0,0.0006]
[1729672394045,0.059876,66848.0,66844.0,0.0006]
[1729672394354,0.059882,66841.0,66840.0,0.0002]
[1729672394559,0.059886,66836.0,66835.0,0.0002]
[1729672394740,0.590686,66836.0,66835.0,0.0002]
[1729672395648,1.039566,66836.0,66835.0,0.0002]
[1729672395855,0.059888,66834.0,66831.0,0.0002]
[1729672396359,0.508768,66834.0,66831.0,0.0002]
[1729672397744,0.570768,66834.0,66831.0,0.0002]
[1729672398560,1.292368,66834.0,66831.0,0.0002]
[1729672399354,1.30629516,66834.0,66831.0,0.0002]
[1729672399558,0.85741516,66834.0,66831.0,0.0002]
[1729672399865,0.79541516,66834.0,66831.0,0.060091]
[1729672400053,0.781488,66834.0,66831.0,0.0002]
[1729672400256,0.7216,66834.0,66833.0,0.060089]
[1729672400655,0.781488,66834.0,66833.0,0.0002]
[1729672403152,0.05989,66832.0,66831.0,0.0002]
[1729672403663,0.50877,66832.0,66831.0,0.0002]
[1729672404854,0.05989,66832.0,66831.0,0.0002]
[1729672405158,0.50877,66832.0,66831.0,0.0002]
[1729672405357,0.05989,66832.0,66831.0,0.0002]
[1729672409064,0.059894,66827.0,66826.0,0.0002]
[1729672409363,0.059894,66827.0,66824.0,0.63019]
[1729672409364,0.059896,66825.0,66824.0,0.63019]
[1729672409567,0.420696,66825.0,66824.0,0.62943]
[1729672409865,0.869616,66825.0,66824.0,0.62943]
[1729672410473,0.869616,66825.0,66824.0,0.29943]
[1729672410675,0.059903,66818.0,66817.0,0.0004]
[1729672410859,0.059904,66816.0,66815.0,0.0004]
[1729672411062,0.420704,66816.0,66815.0,0.0004]
[1729672411257,0.869704,66816.0,66815.0,0.0004]
[1729672411463,0.420704,66816.0,66815.0,0.0004]
[1729672411662,0.590704,66816.0,66815.0,0.0004]
[1729672413570,0.60502293,66816.0,66815.0,0.0004]
[1729672417174,0.96582293,66816.0,66815.0,0.0004]
[1729672419174,0.90591893,66816.0,66810.0,0.0004]
[1729672419368,0.17,66811.0,66810.0,0.0004]
[1729672419676,0.229909,66811.0,66810.0,0.0004]
[1729672420875,0.059909,66811.0,66810.0,0.0004]
[1729672421079,0.059909,66811.0,66810.0,0.04520923]
[1729672421470,0.059909,66811.0,66810.0,0.0004]
[1729672422981,0.229909,66811.0,66810.0,0.0004]
[1729672423176,0.229909,66811.0,66810.0,0.0600758]
[1729672423483,0.229909,66811.0,66810.0,0.06009609]
[1729672423779,0.229909,66811.0,66810.0,0.0004]
[1729672423992,0.678949,66811.0,66807.0,0.06856371]
[1729672424279,0.678949,66811.0,66796.0,0.0004]
[1729672424280,0.5308,66808.0,66796.0,0.0004]
[1729672424509,0.059921,66797.0,66796.0,0.0004]
[1729672424785,0.420721,66797.0,66796.0,0.0004]
[1729672427179,0.059938,66779.0,66772.0,0.0002]
[1729672427380,0.951538,66779.0,66772.0,0.0002]
[1729672427683,0.781538,66779.0,66772.0,0.0002]
[1729672428580,0.781538,66779.0,66772.0,0.060144]
[1729672429182,0.72904502,66779.0,66777.0,0.17]
[1729672429381,0.7216,66779.0,66777.0,0.17]
[1729672429772,0.6226,66779.0,66778.0,0.060138]
[1729672429976,0.52511716,66779.0,66778.0,0.060138]
[1729672430380,0.3608,66789.0,66778.0,0.44944]
[1729672430578,0.3608,66789.0,66788.0,0.059929]
[1729672430786,0.3608,66789.0,66785.0,0.17]
[1729672430787,0.05993,66788.0,66785.0,0.17]
[1729672430983,0.05993,66788.0,66786.0,0.0628]
[1729672431888,0.3608,66789.0,66786.0,0.122731]
[1729672432093,0.3608,66789.0,66786.0,0.0628]
[1729672432284,0.3608,66789.0,66788.0,0.0002]
[1729672432880,0.3608,66789.0,66788.0,0.060129]
[1729672435788,0.3608,66789.0,66788.0,0.0002]
[1729672435992,0.420729,66789.0,66788.0,0.0002]
[1729672445285,0.420729,66789.0,66788.0,0.060129]
[1729672450002,0.3608,66789.0,66788.0,0.060129]
[1729672450888,0.420729,66789.0,66788.0,0.060129]
[1729672451396,0.3608,66789.0,66788.0,0.060129]
[1729672452390,0.420729,66789.0,66788.0,0.060129]
[1729672453702,0.420729,66789.0,66788.0,0.16979198]
[1729672454109,0.420729,66789.0,66788.0,0.1349079]
[1729672454397,0.420729,66789.0,66788.0,0.060129]
[1729672454599,0.420729,66789.0,66788.0,0.230129]
[1729672454600,0.3608,66789.0,66788.0,0.230129]
[1729672454792,0.0008,66797.0,66788.0,0.87865782]
[1729672454987,0.0008,66797.0,66793.0,0.07477746]
[1729672454988,0.059923,66795.0,66793.0,0.07477746]
[1729672455196,0.0008,66797.0,66790.0,0.17]
[1729672455197,0.17,66794.0,66791.0,0.07477746]
[1729672455399,0.059926,66792.0,66791.0,0.07477746]
[1729672455592,0.059926,66792.0,66791.0,0.059927]
[1729672455798,0.0008,66797.0,66793.0,0.059925]
[1729672456095,0.059926,66793.0,66791.0,0.07477746]
[1729672456299,0.059926,66792.0,66791.0,0.07477746]
[1729672456598,0.0008,66797.0,66790.0,0.07477746]
[1729672456800,0.059923,66796.0,66791.0,0.18434944]
[1729672457101,0.17,66794.0,66791.0,0.07477746]
[1729672457301,0.17,66794.0,66788.0,0.07497746]
[1729672457302,0.059929,66789.0,66788.0,0.07497746]
[1729672457501,0.229929,66789.0,66788.0,0.0002]
[1729672459099,0.059931,66786.0,66785.0,0.0004]
[1729672459297,0.420731,66786.0,66785.0,0.0004]
[1729672463393,0.420731,66786.0,66785.0,0.060332]
[1729672463595,0.420731,66786.0,66785.0,0.0004]
[1729672466603,0.420731,66786.0,66785.0,0.060332]
[1729672466905,0.059928,66790.0,66789.0,0.059928]
[1729672467105,0.059928,66790.0,66786.0,0.0643]
[1729672467293,0.059928,66790.0,66789.0,0.060129]
[1729672468099,0.059925,66794.0,66789.0,0.1702]
[1729672468311,0.059925,66794.0,66793.0,0.059925]
[1729672468607,0.059925,66794.0,66793.0,0.0002]
[1729672468909,0.00228001,66796.0,66795.0,0.059923]
[1729672469212,0.0004,66796.0,66795.0,0.060123]
[1729672472108,0.0004,66796.0,66795.0,0.509243]
[1729672473517,0.0004,66796.0,66795.0,0.060123]
[1729672473713,0.1704,66796.0,66795.0,0.0002]
[1729672474006,0.230322,66796.0,66795.0,0.0002]
[1729672474308,0.060322,66796.0,66795.0,0.0002]
[1729672476113,0.0004,66796.0,66795.0,0.060123]
[1729672478618,0.060322,66796.0,66795.0,0.0002]
[1729672480425,0.060322,66796.0,66795.0,0.060123]
[1729672480718,0.0004,66796.0,66795.0,0.060123]
[1729672481118,0.060322,66796.0,66795.0,0.0002]
[1729672486215,0.230322,66796.0,66795.0,0.0002]
[1729672486419,0.591122,66796.0,66795.0,0.0002]
[1729672489916,0.421122,66796.0,66795.0,0.0002]
[1729672490411,0.3612,66796.0,66795.0,0.0002]
[1729672490611,0.0004,66796.0,66795.0,0.230123]
[1729672490820,0.0004,66796.0,66795.0,0.060123]
[1729672493621,0.060322,66796.0,66795.0,0.060123]
[1729672494018,0.0004,66796.0,66795.0,0.060123]
[1729672495529,0.0004,66796.0,66795.0,0.13480783]
[1729672495922,0.060322,66796.0,66795.0,0.13480783]
[1729672496315,0.060322,66796.0,66795.0,0.17042389]
[1729672499734,0.0004,66796.0,66795.0,0.17042389]
[1729672501334,0.060322,66796.0,66795.0,0.17042389]
[1729672502829,0.421122,66796.0,66795.0,0.075089]
[1729672503127,0.421122,66796.0,66795.0,0.06011278]
[1729672503443,0.421122,66796.0,66795.0,0.12002711]
[1729672503935,0.421122,66796.0,66795.0,0.060123]
[1729672504439,0.421122,66796.0,66795.0,0.12002584]
[1729672504821,0.421122,66796.0,66795.0,0.060123]
[1729672507641,0.421122,66796.0,66795.0,0.0002]
[1729672514741,0.421122,66796.0,66795.0,0.06009494]
[1729672515539,0.421122,66796.0,66795.0,0.0002]
[1729672519748,0.421122,66796.0,66795.0,0.12001794]
[1729672520049,0.3612,66796.0,66795.0,0.12001794]
[1729672520432,0.3612,66796.0,66795.0,0.060123]
[1729672523444,0.0004,66796.0,66795.0,0.24566333]
[1729672523652,0.0008,66797.0,66795.0,0.18574033]
[1729672523944,0.0008,66797.0,66796.0,0.060122]
[1729672525440,0.060721,66797.0,66796.0,0.060122]
[1729672526141,0.0008,66797.0,66796.0,0.060122]
[1729672526540,0.0008,66797.0,66796.0,0.509242]
[1729672526742,0.0008,66797.0,66796.0,0.576642]
[1729672526949,0.0004,66800.0,66799.0,0.05992]
[1729672527149,0.0004,66800.0,66799.0,0.22992]